bitfinex/quotes_BTCUSD_20250219
["timestamp","ask_amount","ask_price","bid_price","bid_amount"]
[1739982425685,0.03515573,96524.0,96523.0,0.015]
[1739982426031,0.03515573,96524.0,96523.0,0.0954]
[1739982426443,0.03515573,96524.0,96523.0,0.09945544]
[1739982426693,0.03515573,96524.0,96523.0,0.11645544]
[1739982427320,0.03515573,96524.0,96523.0,0.11745544]
[1739982427688,0.03515573,96524.0,96523.0,0.11945544]
[1739982431131,0.03515573,96524.0,96523.0,0.16525544]
[1739982431778,0.03515573,96524.0,96523.0,0.16225544]
[1739982431978,0.03515573,96524.0,96523.0,0.16525544]
[1739982432138,0.03515573,96524.0,96523.0,0.32465844]
[1739982432553,0.03515573,96524.0,96523.0,0.74756209]
[1739982434043,0.03515573,96524.0,96523.0,0.74056209]
[1739982434248,0.03515573,96524.0,96523.0,0.74456209]
[1739982434448,0.03515573,96524.0,96523.0,0.74956209]
[1739982434725,0.03515573,96524.0,96523.0,0.74456209]
[1739982434855,0.03515573,96524.0,96523.0,0.74056209]
[1739982435201,0.03515573,96524.0,96523.0,0.75456209]
[1739982436381,0.03515573,96524.0,96523.0,1.29796209]
[1739982437223,0.03515573,96524.0,96523.0,1.29096209]
[1739982437414,0.03515573,96524.0,96523.0,1.13555909]
[1739982437612,0.03515573,96524.0,96523.0,1.14255909]
[1739982437815,0.03515573,96524.0,96523.0,1.29796209]
[1739982438062,0.03515573,96524.0,96523.0,1.13555909]
[1739982438491,0.03515573,96524.0,96523.0,1.29096209]
[1739982438703,0.0004254,96524.0,96523.0,0.75456209]
[1739982438912,0.0004254,96524.0,96523.0,0.76910294]
[1739982439114,0.0004254,96524.0,96523.0,0.76210294]
[1739982439513,0.0004254,96524.0,96523.0,0.76910294]
[1739982439963,0.0004254,96524.0,96523.0,0.76210294]
[1739982440572,0.0004254,96524.0,96523.0,0.75510294]
[1739982440787,0.0004254,96524.0,96523.0,0.76210294]
[1739982441440,0.0004254,96524.0,96523.0,0.76910294]
[1739982441855,0.0004254,96524.0,96523.0,0.76210294]
[1739982442056,0.0004254,96524.0,96523.0,1.30550294]
[1739982442647,0.0004254,96524.0,96523.0,1.31250294]
[1739982442846,0.0004254,96524.0,96523.0,1.46250294]
[1739982443079,0.0004254,96524.0,96523.0,1.45550294]
[1739982443252,0.0004254,96524.0,96523.0,1.46250294]
[1739982444068,0.0004254,96524.0,96523.0,1.45550294]
[1739982444473,0.0004254,96524.0,96523.0,1.46250294]
[1739982444671,0.0004254,96524.0,96523.0,1.45550294]
[1739982445734,0.0004254,96524.0,96523.0,1.47042294]
[1739982446608,0.0004254,96524.0,96523.0,0.37045544]
[1739982446807,0.1558264,96524.0,96523.0,0.35345544]
[1739982447018,0.0004254,96524.0,96523.0,0.37045544]
[1739982447448,0.0004254,96524.0,96523.0,0.36345544]
[1739982447872,0.0004254,96524.0,96523.0,0.36845544]
[1739982448068,0.0004254,96524.0,96523.0,0.36345544]
[1739982448321,0.0004254,96524.0,96523.0,0.35645544]
[1739982448518,0.0004254,96524.0,96523.0,0.37045544]
[1739982448728,0.0004254,96524.0,96523.0,0.36345544]
[1739982449064,0.0004254,96524.0,96523.0,0.36245544]
[1739982449290,0.0004254,96524.0,96523.0,0.35645544]
[1739982449503,0.0004254,96524.0,96523.0,0.36345544]
[1739982449938,0.0004254,96524.0,96523.0,0.35645544]
[1739982450885,0.0004254,96524.0,96523.0,0.36345544]
[1739982451331,0.0004254,96524.0,96523.0,0.51885844]
[1739982451543,0.0004254,96524.0,96523.0,0.52585844]
[1739982451954,0.0004254,96524.0,96523.0,0.51885844]
[1739982452155,0.0004254,96524.0,96523.0,0.52585844]
[1739982453953,0.0004254,96524.0,96523.0,0.62836209]
[1739982455341,0.0004254,96524.0,96523.0,0.70996209]
[1739982458302,0.0004254,96524.0,96523.0,0.75646209]
[1739982462724,0.0004254,96524.0,96523.0,0.77100294]
[1739982466719,0.0004254,96524.0,96523.0,0.61559994]
[1739982466923,0.0004254,96524.0,96523.0,0.77100294]
[1739982467347,0.0004254,96524.0,96523.0,0.35345544]
[1739982467553,0.1558264,96524.0,96523.0,0.35345544]
[1739982467761,0.0004254,96524.0,96523.0,0.37045544]
[1739982467965,0.0004254,96524.0,96523.0,0.37190062]
[1739982468170,0.005,96566.0,96532.0,0.015]
[1739982468344,0.155387,96533.0,96532.0,0.015]
[1739982468554,0.155387,96533.0,96531.0,0.017]
[1739982468555,0.155385,96534.0,96533.0,0.00548271]
[1739982468756,0.155387,96533.0,96532.0,0.015]
[1739982468998,0.15539,96531.0,96530.0,0.015]
[1739982469181,0.1554,96525.0,96524.0,0.015]
[1739982469359,0.155401,96524.0,96523.0,0.0078506]
[1739982469560,0.155401,96524.0,96523.0,0.0008506]
[1739982469786,0.155401,96524.0,96523.0,0.0178506]
[1739982470143,0.155401,96524.0,96523.0,0.0008506]
[1739982471102,0.155401,96524.0,96523.0,0.0178506]
[1739982471482,0.155401,96524.0,96523.0,0.0238506]
[1739982471893,0.155401,96524.0,96523.0,0.0278506]
[1739982472095,0.155401,96524.0,96523.0,0.0218506]
[1739982472302,0.155401,96524.0,96523.0,0.0278506]
[1739982472450,0.2309196,96532.0,96526.0,0.015]
[1739982472451,0.0162346,96532.0,96526.0,0.015]
[1739982472659,0.155396,96527.0,96526.0,0.015]
[1739982472840,0.155396,96527.0,96526.0,0.032]
[1739982475206,0.155396,96527.0,96526.0,0.037]
[1739982475433,0.155396,96527.0,96526.0,0.04]
[1739982475647,0.155396,96527.0,96526.0,0.032]
[1739982475854,0.155396,96527.0,96526.0,0.036]
[1739982476055,0.155396,96527.0,96526.0,0.039]
[1739982476845,0.155396,96527.0,96526.0,0.036]
[1739982477813,0.15539,96532.0,96526.0,0.032]
[1739982477994,0.02047384,96534.0,96526.0,0.037]
[1739982478334,0.155396,96527.0,96526.0,0.037]
[1739982478458,0.155396,96527.0,96526.0,0.04]
[1739982478685,0.155396,96527.0,96526.0,0.032]
[1739982479152,0.155396,96527.0,96526.0,0.037]
[1739982479436,0.155396,96527.0,96526.0,0.035]
[1739982480641,0.207187,96532.0,96528.0,0.017]
[1739982480902,0.155393,96529.0,96528.0,0.017]
[1739982481930,0.155393,96529.0,96528.0,0.02]
[1739982482595,0.155393,96529.0,96528.0,0.017]
[1739982482801,0.155393,96529.0,96528.0,0.002]
[1739982483150,0.155393,96529.0,96528.0,0.004]
[1739982483151,0.40789665,96529.0,96528.0,0.004]
[1739982483292,1.05750165,96529.0,96528.0,0.004]
[1739982483501,1.29928865,96529.0,96528.0,0.006]
[1739982483738,1.01926365,96529.0,96528.0,0.004]
[1739982484106,1.01926365,96529.0,96528.0,0.006]
[1739982484311,1.01926365,96529.0,96528.0,0.002]
[1739982484685,1.01926365,96529.0,96528.0,0.005]
[1739982485029,0.41539665,96529.0,96528.0,0.002]
[1739982485270,0.305419,96513.0,96507.0,0.015]
[1739982486306,0.40792265,96513.0,96504.0,0.017]
[1739982486481,0.40792265,96513.0,96512.0,0.003851]
[1739982488174,0.40792265,96513.0,96512.0,0.008851]
[1739982488770,0.40792265,96513.0,96512.0,0.000851]
[1739982488929,0.41575638,96513.0,96512.0,0.000851]
[1739982489649,0.41575638,96513.0,96512.0,0.002851]
[1739982490111,0.43663657,96513.0,96512.0,0.002851]
[1739982491149,0.43663657,96513.0,96512.0,0.000851]
[1739982491363,0.43663657,96513.0,96512.0,0.002851]
[1739982491907,0.43663657,96513.0,96512.0,0.000851]
[1739982492107,0.43663657,96513.0,96512.0,0.002851]
[1739982493121,0.43663657,96513.0,96512.0,0.000851]
[1739982493771,0.43863657,96513.0,96512.0,0.000851]
[1739982494702,0.44063657,96513.0,96512.0,0.000851]
[1739982495200,0.43663657,96513.0,96512.0,0.000851]
[1739982495635,0.44063657,96513.0,96512.0,0.000851]
[1739982496350,0.44063657,96513.0,96492.0,0.015]
[1739982496351,0.15,96512.0,96492.0,0.015]
[1739982496578,0.28521757,96513.0,96489.0,0.079]
[1739982496579,0.305454,96491.0,96490.0,0.015]
[1739982498120,0.305454,96491.0,96490.0,0.032]
[1739982498324,0.155454,96491.0,96490.0,0.032]
[1739982498944,0.18112689,96491.0,96490.0,0.032]
[1739982499589,0.02567289,96491.0,96490.0,0.038]
[1739982499740,0.155452,96493.0,96492.0,0.015]
[1739982500085,0.20266319,96493.0,96492.0,0.015]
[1739982501545,0.20266219,96493.0,96492.0,0.015]
[1739982502036,0.20266219,96493.0,96492.0,0.019]
[1739982502583,0.20266219,96493.0,96492.0,0.024]
[1739982504410,0.04721119,96493.0,96492.0,0.024]
[1739982504661,0.02627496,96493.0,96492.0,0.024]
[1739982504893,0.155451,96493.0,96492.0,0.1061]
[1739982505132,0.155451,96493.0,96492.0,0.11260372]
[1739982505597,0.18114705,96493.0,96492.0,0.1061]
[1739982506516,0.02569605,96493.0,96492.0,0.1061]
[1739982506715,0.02035032,96499.0,96492.0,0.1061]
[1739982506913,0.207258,96498.0,96492.0,0.11260372]
[1739982507189,0.02035032,96499.0,96492.0,0.11260372]
[1739982507378,0.155445,96497.0,96492.0,0.11260372]
[1739982507553,0.02035032,96499.0,96492.0,0.11260372]
[1739982507793,0.15545,96494.0,96492.0,0.11260372]
[1739982507988,0.02035032,96499.0,96492.0,0.10760372]
[1739982508402,0.15,96497.0,96492.0,0.10660372]
[1739982508591,0.155448,96495.0,96492.0,0.10660372]
[1739982508914,0.02624084,96502.0,96501.0,0.015]
[1739982509168,0.207195,96527.0,96501.0,0.015]
[1739982509169,0.17167257,96504.0,96501.0,0.015]
[1739982509342,0.01623857,96504.0,96501.0,0.015]
[1739982509551,0.01623857,96504.0,96502.0,0.00648281]
[1739982509726,0.01623857,96504.0,96501.0,0.015]
[1739982509931,0.155437,96502.0,96501.0,0.015]
[1739982510136,0.155437,96502.0,96501.0,0.016]
[1739982510477,0.17167157,96504.0,96503.0,0.015]
[1739982511117,0.17167157,96504.0,96499.0,0.017]
[1739982511118,0.15544,96500.0,96499.0,0.032]
[1739982511838,0.155442,96499.0,96498.0,0.1317]
[1739982512249,0.207251,96502.0,96491.0,0.0964]
[1739982512250,0.155453,96492.0,96491.0,0.0964]
[1739982512447,0.155453,96492.0,96491.0,0.10290581]
[1739982514537,0.02606006,96504.0,96491.0,0.10290581]
[1739982514679,0.155451,96493.0,96491.0,0.10290581]
[1739982514882,0.155453,96492.0,96491.0,0.1034]
[1739982515093,0.155453,96492.0,96491.0,0.10990581]
[1739982515297,0.155453,96492.0,96491.0,0.10690581]
[1739982515535,0.155453,96492.0,96491.0,0.10290581]
[1739982515743,0.155453,96492.0,96491.0,0.0994]
[1739982516463,0.155453,96492.0,96491.0,0.100251]
[1739982516674,0.02119279,96493.0,96491.0,0.105251]
[1739982516872,0.1558785,96492.0,96491.0,0.105251]
[1739982517304,0.3058785,96492.0,96491.0,0.105251]
[1739982517857,0.1504255,96492.0,96491.0,0.100251]
[1739982518071,0.3058785,96492.0,96491.0,0.100251]
[1739982518289,0.3058785,96492.0,96491.0,0.118251]
[1739982518631,0.3058785,96492.0,96491.0,0.020851]
[1739982518963,0.3058785,96492.0,96491.0,0.022851]
[1739982519368,0.3058785,96492.0,96491.0,0.026851]
[1739982519640,0.3058785,96492.0,96491.0,0.017851]
[1739982519873,0.3058785,96492.0,96491.0,0.020851]
[1739982520053,0.1504255,96492.0,96491.0,0.104151]
[1739982520255,0.1504255,96492.0,96491.0,0.119151]
[1739982520487,0.1504255,96492.0,96491.0,0.166651]
[1739982520817,0.3058785,96492.0,96491.0,0.166651]
[1739982521401,0.3058785,96492.0,96491.0,0.161651]
[1739982521720,0.3058785,96492.0,96491.0,0.169651]
[1739982522123,0.3058785,96492.0,96491.0,0.161651]
[1739982522247,0.3058785,96492.0,96491.0,0.165651]
[1739982522453,0.1504255,96492.0,96491.0,0.170651]
[1739982523548,0.3058785,96492.0,96491.0,0.170651]
[1739982523879,0.3058785,96492.0,96491.0,0.153651]
[1739982524342,0.3058785,96492.0,96491.0,0.170651]
[1739982524550,0.1504255,96492.0,96491.0,0.170651]
[1739982525518,0.1504255,96492.0,96491.0,0.326105]
[1739982525737,0.1504255,96492.0,96491.0,0.170651]
[1739982527949,0.0004255,96492.0,96491.0,0.27315465]
[1739982528178,0.0004255,96492.0,96491.0,0.42860865]
[1739982528875,0.0004255,96492.0,96491.0,0.41960865]
[1739982529141,0.0004255,96492.0,96491.0,0.42560865]
[1739982529579,0.0004255,96492.0,96491.0,0.42960865]
[1739982531049,0.0004255,96492.0,96491.0,0.42412898]
[1739982531533,0.0004255,96492.0,96491.0,0.74452898]
[1739982532209,0.0004255,96492.0,96491.0,0.58907498]
[1739982532766,0.0004255,96492.0,96491.0,0.74452898]
[1739982534533,0.0004255,96492.0,96491.0,0.58907498]
[1739982534928,0.0004255,96492.0,96491.0,0.48657133]
[1739982541581,0.0004255,96492.0,96491.0,0.48742233]
[1739982546809,0.0004255,96492.0,96491.0,0.47042233]
[1739982547061,0.0004255,96492.0,96491.0,0.48742233]
[1739982549791,0.0004255,96492.0,96491.0,0.64287633]
[1739982550018,0.0004255,96492.0,96491.0,0.48742233]
[1739982550492,0.0004255,96492.0,96491.0,0.64287633]
[1739982551271,0.0004255,96492.0,96491.0,0.48742233]
[1739982551473,0.0004255,96492.0,96491.0,0.64287633]
[1739982552798,0.0004255,96492.0,96491.0,0.48742233]
[1739982553003,0.0004255,96492.0,96491.0,0.64287633]
[1739982557180,0.0004255,96492.0,96491.0,0.74537998]
[1739982558170,0.0004255,96492.0,96491.0,0.73937998]
[1739982558477,0.0004255,96492.0,96491.0,0.74237998]
[1739982558673,0.0004255,96492.0,96491.0,0.59292598]
[1739982559741,0.0004255,96492.0,96491.0,0.74837998]
[1739982560114,0.0004255,96492.0,96491.0,0.49042233]
[1739982560315,0.0004255,96492.0,96491.0,0.74837998]
[1739982562859,0.0004255,96492.0,96491.0,0.73137998]
[1739982563061,0.0004255,96492.0,96491.0,0.74837998]
[1739982569960,0.0004255,96492.0,96491.0,0.74237998]
[1739982570174,0.0004255,96492.0,96491.0,0.73537998]
[1739982570375,0.0004255,96492.0,96491.0,0.74937998]
[1739982570954,0.0004255,96492.0,96491.0,0.74237998]
[1739982571179,0.0004255,96492.0,96491.0,0.74937998]
[1739982571690,0.0004255,96492.0,96491.0,0.74237998]
[1739982572085,0.0004255,96492.0,96491.0,0.74937998]
[1739982572413,0.0004255,96492.0,96491.0,0.74237998]
[1739982572831,0.0004255,96492.0,96491.0,0.74937998]
[1739982575182,0.0004255,96492.0,96491.0,0.57692598]
[1739982575363,0.0004255,96492.0,96491.0,0.59392598]
[1739982575564,0.0004255,96492.0,96491.0,0.57692598]
[1739982575767,0.0004255,96492.0,96491.0,0.59392598]
[1739982576320,0.0004255,96492.0,96491.0,0.74937998]
[1739982576998,0.0004255,96492.0,96491.0,0.57692598]
[1739982577208,0.0004255,96492.0,96491.0,0.75588579]
[1739982577518,0.0004255,96492.0,96491.0,0.58343179]
[1739982577642,0.0004255,96492.0,96491.0,0.60043179]
[1739982580518,0.0004255,96492.0,96491.0,0.75588579]
[1739982582485,0.06537915,96511.0,96510.0,0.017]
[1739982582692,0.23018337,96512.0,96511.0,0.017]
[1739982583533,0.15543,96506.0,96505.0,0.015]
[1739982584235,0.207217,96517.0,96499.0,0.015]
[1739982584435,0.15544,96500.0,96499.0,0.032]
[1739982584865,0.15544,96500.0,96499.0,0.03848908]
[1739982585087,0.15544,96500.0,96499.0,0.032]
[1739982585995,0.15544,96500.0,96499.0,0.039]
[1739982586221,0.15,96514.0,96505.0,0.017]
[1739982586521,0.15543,96506.0,96505.0,0.02]
[1739982586729,0.15543,96506.0,96505.0,0.017]
[1739982587045,0.15544,96500.0,96499.0,0.027]
[1739982587255,0.15544,96500.0,96499.0,0.039]
[1739982587863,0.15544,96500.0,96499.0,0.032]
[1739982589088,0.15544,96500.0,96499.0,0.039]
[1739982589652,0.15544,96500.0,96499.0,0.044]
[1739982590514,0.02048079,96506.0,96499.0,0.044]
[1739982590718,0.02048079,96506.0,96500.0,0.00648699]
[1739982590918,0.155434,96504.0,96500.0,0.00648699]
[1739982591173,0.02048079,96506.0,96499.0,0.044]
[1739982591174,0.155436,96503.0,96502.0,0.017]
[1739982591800,0.02048079,96506.0,96503.0,0.015]
[1739982592243,0.155433,96504.0,96503.0,0.015]
[1739982592888,0.155433,96504.0,96503.0,0.032]
[1739982593092,0.207238,96507.0,96503.0,0.032]
[1739982593311,0.15543,96506.0,96505.0,0.017]
[1739982595471,0.15543,96506.0,96505.0,0.022]
[1739982595807,0.15543,96506.0,96505.0,0.017]
[1739982596272,0.15543,96506.0,96505.0,0.022]
[1739982596510,0.15543,96506.0,96505.0,0.025]
[1739982599575,0.15543,96506.0,96505.0,0.02]
[1739982599772,0.0206497,96507.0,96505.0,0.02]
[1739982599999,0.0206497,96507.0,96505.0,0.025]
[1739982600199,0.15543,96506.0,96505.0,0.022]
[1739982600603,0.0206497,96507.0,96505.0,0.022]
[1739982601158,0.15543,96506.0,96505.0,0.022]
[1739982601393,0.01623727,96508.0,96506.0,0.032]
[1739982601602,0.01623727,96508.0,96507.0,0.0954]
[1739982602495,0.0004254,96511.0,96507.0,0.1124]
[1739982602700,0.1558474,96511.0,96509.0,0.017]
[1739982602910,0.155424,96510.0,96509.0,0.017]
[1739982603109,0.0004254,96511.0,96509.0,0.032]
[1739982603313,0.155424,96510.0,96509.0,0.032]
[1739982603542,0.155424,96510.0,96509.0,0.017]
[1739982603743,0.155427,96508.0,96507.0,0.019]
[1739982604674,0.155427,96508.0,96507.0,0.002]
[1739982604675,0.40793065,96508.0,96507.0,0.002]
[1739982605089,0.52497515,96508.0,96507.0,0.002]
[1739982605289,0.305453,96492.0,96491.0,0.000851]
[1739982605430,0.40795665,96492.0,96491.0,0.000851]
[1739982606494,0.305453,96492.0,96491.0,0.000851]
[1739982606703,0.32569898,96492.0,96491.0,0.000851]
[1739982607099,0.00771059,96500.0,96491.0,0.015851]
[1739982607353,0.008,96528.0,96491.0,0.015851]
[1739982607354,0.00788,96526.0,96499.0,0.015]
[1739982607591,0.15,96503.0,96502.0,0.015]
[1739982607760,0.207215,96519.0,96507.0,0.015]
[1739982607959,0.00788,96526.0,96508.0,0.015]
[1739982608132,0.155425,96509.0,96508.0,0.015]
[1739982608492,0.305425,96509.0,96508.0,0.015]
[1739982609551,0.15543,96506.0,96505.0,0.017]
[1739982609981,0.357238,96508.0,96500.0,0.015]
[1739982610185,0.357238,96508.0,96492.0,0.0798]
[1739982610186,0.10250365,96507.0,96492.0,0.0798]
[1739982610363,0.155445,96497.0,96496.0,0.015]
[1739982610567,0.155451,96493.0,96492.0,0.0948]
[1739982611291,0.155451,96493.0,96492.0,0.016]
[1739982611716,0.155451,96493.0,96492.0,0.001]
[1739982612502,0.155451,96493.0,96492.0,0.021]
[1739982612704,0.155451,96493.0,96492.0,0.004]
[1739982612907,0.155451,96493.0,96492.0,0.001]
[1739982613117,0.155451,96493.0,96492.0,0.001851]
[1739982613321,0.155451,96493.0,96492.0,0.000851]
[1739982613756,0.155451,96493.0,96492.0,0.006851]
[1739982614211,0.155451,96493.0,96492.0,0.000851]
[1739982614543,0.155451,96493.0,96492.0,0.019851]
[1739982615250,0.20722,96516.0,96492.0,0.019851]
[1739982615457,0.155451,96493.0,96492.0,0.019851]
[1739982615661,0.20722,96516.0,96492.0,0.019851]
[1739982615662,0.357241,96506.0,96492.0,0.034851]
[1739982615891,0.20722,96516.0,96492.0,0.034851]
[1739982615892,0.155451,96493.0,96492.0,0.034851]
[1739982616675,0.155451,96493.0,96492.0,0.035851]
[1739982616925,0.155451,96493.0,96492.0,0.034851]
[1739982617169,0.155451,96493.0,96492.0,0.032851]
[1739982617407,0.155451,96493.0,96492.0,0.036851]
[1739982617644,0.357247,96503.0,96492.0,0.036851]
[1739982617645,0.15,96504.0,96494.0,0.015]
[1739982617898,0.15,96504.0,96497.0,0.015]
[1739982618142,0.15,96504.0,96502.0,0.0954]
[1739982618375,0.3249,96524.0,96502.0,0.0954]
[1739982618376,0.3249,96524.0,96503.0,0.015]
[1739982618637,0.3249,96524.0,96504.0,0.017]
[1739982618638,0.155433,96505.0,96504.0,0.017]
[1739982619382,0.207217,96517.0,96503.0,0.015]
[1739982619383,0.00778866,96516.0,96514.0,0.015]
[1739982619634,0.155416,96515.0,96514.0,0.015]
[1739982619880,0.207198,96526.0,96514.0,0.015]
[1739982620120,0.207204,96523.0,96522.0,0.015]
[1739982620845,0.207193,96529.0,96522.0,0.015]
[1739982621087,0.155403,96523.0,96522.0,0.015]
[1739982622993,0.155403,96523.0,96522.0,0.016]
[1739982623229,0.155403,96523.0,96522.0,0.015]
[1739982625845,0.17480723,96523.0,96522.0,0.015]
[1739982626048,0.01940423,96523.0,96522.0,0.015]
[1739982626476,0.01982973,96523.0,96522.0,0.032]
[1739982627635,0.0004255,96523.0,96522.0,0.032]
[1739982628244,0.0004255,96523.0,96522.0,0.033]
[1739982629584,0.207168,96540.0,96530.0,0.017]
[1739982629780,0.155385,96535.0,96530.0,0.017]
[1739982630184,0.155382,96537.0,96530.0,0.017]
[1739982630383,0.155382,96536.0,96530.0,0.017]
[1739982630616,0.155388,96532.0,96530.0,0.017]
[1739982631094,0.155387,96533.0,96530.0,0.018]
[1739982631494,0.155389,96532.0,96530.0,0.018]
[1739982631694,0.155387,96534.0,96530.0,0.017]
[1739982631930,0.155387,96534.0,96530.0,0.019]
[1739982632681,0.207178,96536.0,96530.0,0.019]
[1739982632881,0.15539,96531.0,96530.0,0.019]
[1739982633284,0.15539,96531.0,96530.0,0.018]
[1739982633828,0.15539,96531.0,96530.0,0.019]
[1739982634188,0.15539,96531.0,96530.0,0.017]
[1739982634384,0.15539,96531.0,96530.0,0.035]
[1739982634645,0.15539,96531.0,96530.0,0.021]
[1739982634769,0.15539,96531.0,96530.0,0.036]
[1739982635284,0.15539,96531.0,96530.0,0.021]
[1739982635513,0.15539,96531.0,96530.0,0.004]
[1739982635719,0.25789365,96531.0,96530.0,0.004]
[1739982635963,0.4272539,96531.0,96530.0,0.004]
[1739982636351,0.4272539,96531.0,96530.0,0.001]
[1739982637115,0.44348902,96531.0,96530.0,0.001]
[1739982637317,0.155404,96522.0,96521.0,0.3204]
[1739982637879,0.305404,96522.0,96521.0,0.3204]
[1739982638220,0.40790765,96522.0,96521.0,0.3204]
[1739982638656,0.15,96521.0,96507.0,0.0787]
[1739982638827,0.155429,96507.0,96506.0,0.017]
[1739982640135,0.155433,96504.0,96503.0,0.1149527]
[1739982641327,0.17479325,96504.0,96503.0,0.1149527]
[1739982641974,0.17479325,96504.0,96503.0,0.1189527]
[1739982642737,0.19491086,96504.0,96503.0,0.1189527]
[1739982643562,0.19491086,96504.0,96503.0,0.1249527]
[1739982644194,0.17555061,96504.0,96503.0,0.1249527]
[1739982644787,0.17555061,96504.0,96503.0,0.042]
[1739982646199,0.17555061,96504.0,96503.0,0.025]
[1739982646400,0.17555061,96504.0,96503.0,0.042]
[1739982647603,0.42805426,96504.0,96503.0,0.01]
[1739982649862,0.42805426,96504.0,96503.0,0.006]
[1739982650084,0.42805426,96504.0,96492.0,0.017851]
[1739982650085,0.15,96503.0,96492.0,0.017851]
[1739982650281,0.155451,96493.0,96492.0,0.000851]
[1739982650497,0.25795465,96493.0,96492.0,0.000851]
[1739982651925,0.27419502,96493.0,96492.0,0.000851]
[1739982652134,0.27419502,96493.0,96492.0,0.002851]
[1739982652895,0.40795465,96493.0,96492.0,0.002851]
[1739982654217,0.40795465,96493.0,96492.0,0.000851]
[1739982654431,0.40795465,96493.0,96492.0,0.004851]
[1739982654799,0.40795465,96493.0,96492.0,0.003851]
[1739982655534,0.40795465,96493.0,96492.0,0.000851]
[1739982657111,0.42419541,96493.0,96492.0,0.000851]
[1739982657513,0.42419541,96493.0,96492.0,0.002851]
[1739982660897,0.42419541,96493.0,96492.0,0.000851]
[1739982661302,0.42419541,96493.0,96492.0,0.001851]
[1739982661599,0.44357301,96493.0,96492.0,0.001851]
[1739982661843,0.34106936,96493.0,96492.0,0.000851]
[1739982662097,0.18561836,96493.0,96492.0,0.000851]
[1739982662297,0.02110489,96506.0,96492.0,0.145851]
[1739982662298,0.00454111,96506.0,96492.0,0.145851]
[1739982662499,0.10704476,96506.0,96497.0,0.015]
[1739982662745,0.155451,96493.0,96492.0,0.130851]
[1739982663130,0.155451,96493.0,96492.0,0.003851]
[1739982663364,0.10250365,96493.0,96492.0,0.003851]
[1739982663608,0.25795465,96493.0,96492.0,0.003851]
[1739982663816,0.25795465,96493.0,96492.0,0.000851]
[1739982664036,0.25795465,96493.0,96492.0,0.004851]
[1739982664263,0.25795465,96493.0,96492.0,0.003851]
[1739982664436,0.40795465,96493.0,96492.0,0.000851]
[1739982664628,0.40795465,96493.0,96492.0,0.00066683]
[1739982665646,0.43899596,96493.0,96492.0,0.00066683]
[1739982666828,0.40795465,96493.0,96492.0,0.00066683]
[1739982667064,0.40795465,96493.0,96429.0,0.02]
[1739982667065,0.005,96491.0,96476.0,2e-07]
[1739982667269,0.1621,96492.0,96434.0,0.0807]
[1739982667270,0.305535,96441.0,96434.0,0.0807]
[1739982667476,0.40803865,96441.0,96434.0,0.0807]
[1739982667675,0.00761462,96452.0,96438.0,0.017]
[1739982667879,0.02091974,96452.0,96446.0,0.017]
[1739982668075,0.15,96450.0,96446.0,0.017]
[1739982668282,0.155529,96445.0,96444.0,0.032]
[1739982668504,0.155529,96445.0,96444.0,0.015]
[1739982668678,0.155535,96441.0,96440.0,0.0048508]
[1739982668861,0.155535,96441.0,96440.0,0.0008508]
[1739982669067,0.305535,96441.0,96440.0,0.0008508]
[1739982669906,0.32609911,96441.0,96440.0,0.0008508]
[1739982671003,0.42860276,96441.0,96440.0,0.0088508]
[1739982671829,0.42860276,96441.0,96440.0,0.0058508]
[1739982672045,0.42860276,96441.0,96427.0,0.0008508]
[1739982672046,0.305556,96428.0,96427.0,0.0008508]
[1739982672245,0.40805965,96428.0,96427.0,0.0008508]
[1739982672445,0.43900852,96428.0,96427.0,0.0008508]
[1739982672790,0.64365189,96428.0,96427.0,0.0008508]
[1739982673001,0.65990402,96428.0,96427.0,0.0008508]
[1739982673884,0.56560165,96428.0,96427.0,0.0008508]
[1739982674067,0.40805965,96428.0,96427.0,0.0008508]
[1739982674606,0.43516902,96428.0,96427.0,0.0008508]
[1739982674809,0.42923973,96428.0,96427.0,0.0008508]
[1739982675052,0.43023973,96428.0,96427.0,0.0008508]
[1739982675450,0.42923973,96428.0,96427.0,0.0008508]
[1739982675661,0.43023973,96428.0,96427.0,0.0008508]
[1739982676123,0.151,96428.0,96427.0,0.0959508]
[1739982676324,0.306556,96428.0,96427.0,0.10474307]
[1739982677105,0.306556,96428.0,96427.0,0.0959508]
[1739982677482,0.305556,96428.0,96427.0,0.10474307]
[1739982677683,0.305556,96428.0,96427.0,0.0959508]
[1739982677892,0.305556,96428.0,96427.0,0.0979508]
[1739982678098,0.305556,96428.0,96427.0,0.0989508]
[1739982678409,0.151,96428.0,96427.0,0.0989508]
[1739982678764,0.151,96428.0,96427.0,0.15424307]
[1739982678965,0.001,96428.0,96427.0,0.17124307]
[1739982679253,0.207378,96442.0,96427.0,0.17124307]
[1739982679367,0.15,96438.0,96434.0,0.015]
[1739982679575,0.207365,96449.0,96439.0,0.015]
[1739982679777,0.207368,96447.0,96439.0,0.015]
[1739982679984,0.02093477,96445.0,96439.0,0.02375457]
[1739982680493,0.16625181,96440.0,96439.0,0.02275457]
[1739982680700,0.16625181,96440.0,96439.0,0.014]
[1739982680895,0.32178881,96440.0,96439.0,0.014]
[1739982681358,0.32378881,96440.0,96439.0,0.014]
[1739982681672,0.32578881,96440.0,96439.0,0.014]
[1739982682199,0.02025181,96440.0,96439.0,0.014]
[1739982682607,0.02025181,96440.0,96439.0,0.0912]
[1739982682890,0.004,96440.0,96439.0,0.11695457]
[1739982683227,0.002,96440.0,96439.0,0.11695457]
[1739982683603,0.002,96440.0,96439.0,0.1082]
[1739982683779,0.003,96440.0,96439.0,0.12295457]
[1739982685000,0.003,96440.0,96439.0,0.12695457]
[1739982685284,0.003,96440.0,96439.0,0.22945822]
[1739982685488,0.003,96440.0,96439.0,0.75309622]
[1739982685804,0.0034257,96440.0,96439.0,0.75309622]
[1739982687556,0.0034257,96440.0,96439.0,0.59755822]
[1739982687703,0.0034257,96440.0,96439.0,0.75309622]